bitfinex-derivatives/quotes_BTCF0:USTF0_20250213
["timestamp","ask_amount","ask_price","bid_price","bid_amount"]
[1739466347255,0.5698984,95635.0,95634.0,0.002]
[1739466347456,0.5698984,95635.0,95634.0,0.001]
[1739466354558,0.2091181,95626.0,95625.0,0.00015683]
[1739466354750,0.5699181,95626.0,95625.0,0.00015683]
[1739466355549,0.5699181,95626.0,95625.0,0.00215683]
[1739466355750,0.5699181,95626.0,95625.0,0.00615683]
[1739466357861,0.2091029,95633.0,95625.0,0.36695683]
[1739466358159,0.11256037,95634.0,95633.0,0.2091016]
[1739466359360,0.11256037,95634.0,95633.0,0.2101016]
[1739466360752,0.00156846,95654.0,95644.0,0.2090788]
[1739466360956,0.00156846,95654.0,95653.0,0.2090591]
[1739466361156,0.00156846,95654.0,95653.0,0.5698591]
[1739466362751,0.00256846,95654.0,95653.0,0.58477076]
[1739466363357,0.001,95654.0,95653.0,0.58477076]
[1739466365770,0.12622435,95670.0,95653.0,0.37571166]
[1739466365965,0.2090035,95679.0,95669.0,0.2090225]
[1739466366366,0.2090035,95679.0,95670.0,0.3608]
[1739466366561,0.2089922,95684.0,95673.0,0.2090142]
[1739466366957,0.2089922,95684.0,95674.0,0.0517]
[1739466367963,0.2089922,95684.0,95675.0,0.209011]
[1739466368163,0.22395299,95684.0,95675.0,0.22402491]
[1739466368367,0.2090006,95680.0,95674.0,0.0517]
[1739466368771,0.2090006,95680.0,95674.0,0.0527]
[1739466369364,0.2090006,95680.0,95675.0,0.001]
[1739466369866,0.2090006,95680.0,95674.0,0.0537]
[1739466370373,0.2090029,95679.0,95674.0,0.0537]
[1739466370576,0.2090029,95679.0,95674.0,0.0681503]
[1739466371370,0.0147985,95684.0,95679.0,0.209001]
[1739466371569,0.2089891,95686.0,95674.0,0.0681503]
[1739466371765,0.5697735,95693.0,95689.0,0.2089802]
[1739466372067,0.3608,95693.0,95691.0,0.2089747]
[1739466372574,0.3608,95693.0,95689.0,0.01458013]
[1739466372764,0.3608,95693.0,95682.0,0.3608]
[1739466372965,0.3608,95693.0,95688.0,0.2089808]
[1739466373368,0.3608,95693.0,95682.0,0.3608]
[1739466373369,0.3608,95693.0,95691.0,0.2089751]
[1739466373571,0.3608,95693.0,95691.0,0.2099751]
[1739466374274,0.3608,95693.0,95692.0,0.2089739]
[1739466375878,0.3608,95693.0,95692.0,0.2099739]
[1739466376379,0.3608,95693.0,95692.0,0.2109739]
[1739466376681,0.1,95700.0,95699.0,0.2089586]
[1739466376868,0.1,95700.0,95699.0,0.5697586]
[1739466378985,0.00156751,95713.0,95712.0,0.2089302]
[1739466379275,0.01498395,95728.0,95727.0,0.2088975]
[1739466379580,0.12622435,95730.0,95727.0,0.5696975]
[1739466380073,0.12622435,95730.0,95727.0,0.3608]
[1739466380279,0.2088953,95728.0,95727.0,0.3608]
[1739466380673,0.2089149,95719.0,95718.0,0.00015675]
[1739466380875,0.12622435,95728.0,95727.0,0.001]
[1739466381077,0.15804285,95729.0,95727.0,0.001]
[1739466381569,0.2089093,95722.0,95718.0,0.20907375]
[1739466381772,0.2089149,95719.0,95718.0,0.00015675]
[1739466384080,0.2089048,95724.0,95718.0,0.00115675]
[1739466384672,0.2089048,95724.0,95718.0,0.21007375]
[1739466384874,0.2089048,95724.0,95718.0,0.20907375]
[1739466385073,0.2089048,95724.0,95718.0,0.00015675]
[1739466385268,0.2089048,95724.0,95720.0,0.2089121]
[1739466385471,0.2089048,95724.0,95721.0,0.20891]
[1739466385679,0.2089048,95724.0,95722.0,0.2089077]
[1739466385877,0.15804285,95729.0,95720.0,0.3608]
[1739466386077,0.2089094,95722.0,95720.0,0.3608]
[1739466387181,0.2088998,95726.0,95724.0,0.2089035]
[1739466387389,0.1435,95729.0,95728.0,0.2088953]
[1739466387589,0.1435,95729.0,95728.0,0.5696953]
[1739466388686,0.1435,95729.0,95728.0,0.3608]
[1739466388687,0.3523931,95729.0,95728.0,0.3608]
[1739466389989,0.2089149,95719.0,95718.0,0.36095675]
[1739466390289,0.2089149,95719.0,95718.0,0.00015675]
[1739466391088,0.2089149,95719.0,95718.0,0.00415675]
[1739466392482,0.2089149,95719.0,95718.0,0.00115675]
[1739466392681,0.12622435,95728.0,95718.0,0.00015675]
[1739466392885,0.1435,95729.0,95718.0,0.36095675]
[1739466393085,0.1435,95729.0,95728.0,0.2088953]
[1739466393678,0.0939,95729.0,95728.0,0.2088953]
[1739466394190,0.0939,95729.0,95726.0,0.3608]
[1739466394483,0.0939,95729.0,95728.0,0.2088953]
[1739466394888,0.0939,95729.0,95726.0,0.3608]
[1739466395088,0.2088975,95727.0,95726.0,0.3608]
[1739466395285,0.2089062,95723.0,95722.0,0.3608]
[1739466396788,0.2089149,95719.0,95706.0,0.3608]
[1739466396983,0.2089411,95707.0,95706.0,0.3608]
[1739466397793,0.2089411,95707.0,95706.0,0.2828]
[1739466398890,0.2089607,95698.0,95696.0,0.00156728]
[1739466399091,0.0473,95697.0,95688.0,0.29060742]
[1739466399295,0.2089765,95691.0,95688.0,0.29060742]
[1739466399594,0.0944,95697.0,95688.0,0.29060742]
[1739466399894,0.208948,95704.0,95698.0,0.2089595]
[1739466400595,0.0944,95709.0,95699.0,0.2089572]
[1739466401195,0.0944,95709.0,95689.0,0.051]
[1739466401196,0.208946,95705.0,95692.0,0.3608]
[1739466401393,0.22361087,95705.0,95695.0,0.2089668]
[1739466401585,0.1451,95709.0,95703.0,0.3608]
[1739466401785,0.098,95709.0,95707.0,0.2089403]
[1739466401989,0.2089201,95717.0,95709.0,0.2089355]
[1739466402186,0.12622435,95720.0,95715.0,0.3608]
[1739466402494,0.01501304,95716.0,95715.0,0.3608]
[1739466402694,0.00015647,95716.0,95715.0,0.3608]
[1739466403694,0.0148007,95716.0,95711.0,0.01438912]
[1739466403995,0.2089346,95710.0,95709.0,0.002]
[1739466405291,0.3608,95712.0,95703.0,0.00015675]
[1739466405607,0.5697477,95704.0,95703.0,0.00015675]
[1739466405789,0.2089477,95704.0,95703.0,0.00015675]
[1739466405994,0.3608,95712.0,95703.0,0.00015675]
[1739466406199,0.0148007,95716.0,95706.0,0.2089426]
[1739466406389,0.2089325,95711.0,95706.0,0.2089426]
[1739466406588,0.001,95710.0,95706.0,0.2089426]
[1739466407694,0.001,95710.0,95703.0,0.00015675]
[1739466407695,0.001,95710.0,95709.0,0.2089367]
[1739466408501,0.00015647,95716.0,95715.0,0.2089236]
[1739466408695,0.00015647,95716.0,95715.0,0.5697236]
[1739466409199,0.00015647,95716.0,95715.0,0.2089236]
[1739466410797,0.00015647,95716.0,95710.0,0.2089342]
[1739466410996,0.2089346,95710.0,95709.0,0.003]
[1739466411491,0.2089346,95710.0,95704.0,0.208946]
[1739466412195,0.2089346,95710.0,95709.0,0.001]
[1739466412396,0.2089346,95710.0,95709.0,0.004]
[1739466413192,0.12622435,95713.0,95691.0,0.0472]
[1739466413395,0.2089695,95694.0,95689.0,0.2089787]
[1739466413701,0.2089609,95698.0,95680.0,0.12622435]
[1739466414088,0.01361067,95699.0,95691.0,0.01368985]
[1739466414293,0.2089695,95694.0,95686.0,0.00015675]
[1739466414493,0.2089695,95694.0,95687.0,0.2089828]
[1739466414892,0.2089695,95694.0,95686.0,0.00015675]
[1739466415990,0.001,95694.0,95686.0,0.00015675]
[1739466416397,0.0501,95694.0,95686.0,0.00015675]
[1739466417101,0.2089848,95687.0,95686.0,0.00015675]
[1739466417502,0.001,95694.0,95693.0,0.2089717]
[1739466417898,0.003,95694.0,95693.0,0.2089717]
[1739466418405,0.002,95694.0,95693.0,0.2089717]
[1739466418992,0.001,95694.0,95686.0,0.72247675]
[1739466419196,0.001,95694.0,95693.0,0.2089717]
[1739466419396,0.0015676,95707.0,95706.0,0.2089433]
[1739466419602,0.0015676,95707.0,95706.0,0.5697433]
[1739466419997,0.0015676,95707.0,95706.0,0.2089433]
[1739466420395,0.0015676,95707.0,95706.0,0.5697433]
[1739466421509,0.0015676,95707.0,95706.0,0.5737433]
[1739466422111,0.0015676,95707.0,95706.0,0.5707433]
[1739466422913,0.0015676,95707.0,95706.0,0.5727433]
[1739466423115,0.0015676,95707.0,95706.0,0.58680106]
[1739466424307,0.0015676,95707.0,95706.0,0.58780106]
[1739466424514,0.0015676,95707.0,95706.0,0.58480106]
[1739466424710,0.0015676,95707.0,95706.0,0.58680106]
[1739466428625,0.00015675,95716.0,95706.0,0.58680106]
[1739466428626,0.00015675,95716.0,95715.0,0.2089236]
[1739466428826,0.00015675,95716.0,95715.0,0.5697236]
[1739466429424,5e-08,95716.0,95715.0,0.5697236]
[1739466430730,0.00156728,95739.0,95738.0,0.2088735]
[1739466430921,0.01355633,95747.0,95738.0,0.3608]
[1739466431224,0.01355633,95747.0,95746.0,0.569656]
[1739466431424,0.01355633,95747.0,95746.0,0.58376375]
[1739466431728,0.00015618,95756.0,95750.0,0.2088473]
[1739466433320,0.00015618,95756.0,95755.0,0.2088364]
[1739466433625,0.00015618,95756.0,95755.0,0.5696364]
[1739466434931,0.00015618,95756.0,95755.0,0.5706364]
[1739466435132,0.00015618,95756.0,95755.0,0.5716364]
[1739466435429,0.00015618,95756.0,95755.0,0.3628]
[1739466435826,0.00015618,95756.0,95755.0,0.5716364]
[1739466437532,0.00015618,95756.0,95755.0,0.3628]
[1739466440331,0.00015618,95756.0,95755.0,0.3618]
[1739466440538,0.00015618,95756.0,95755.0,0.3668]
[1739466441023,0.00015618,95756.0,95755.0,0.3648]
[1739466441228,0.00015618,95756.0,95755.0,0.3608]
[1739466442232,0.00015618,95756.0,95755.0,0.3618]
[1739466443729,8e-08,95756.0,95755.0,0.3638]
[1739466444236,8e-08,95756.0,95755.0,0.3618]
[1739466444429,8e-08,95756.0,95755.0,0.3648]
[1739466444830,8e-08,95756.0,95755.0,0.3668]
[1739466447330,0.098,95778.0,95761.0,0.0522057]
[1739466447534,0.098,95778.0,95770.0,0.5696037]
[1739466450535,0.2087911,95776.0,95770.0,0.5696037]
[1739466450730,0.098,95778.0,95770.0,0.5696037]
[1739466450934,0.2088004,95772.0,95770.0,0.5696037]
[1739466451142,0.306788,95778.0,95770.0,0.5696037]
[1739466451843,0.2087625,95789.0,95770.0,0.5696037]
[1739466452038,0.3071625,95789.0,95770.0,0.5696037]
[1739466452233,0.0984,95789.0,95770.0,0.5696037]
[1739466452439,0.12622435,95780.0,95770.0,0.5696037]
[1739466452645,0.2591848,95779.0,95770.0,0.5696037]
[1739466453044,0.0504,95779.0,95770.0,0.5696037]
[1739466454138,0.0504,95779.0,95770.0,0.3608]
[1739466454348,0.3608,95775.0,95761.0,0.00015666]
[1739466454643,0.3608,95763.0,95755.0,0.00072]
[1739466454841,0.12779107,95771.0,95757.0,0.2088311]
[1739466454842,0.12622435,95765.0,95757.0,0.2088311]
[1739466455938,0.3608,95759.0,95751.0,0.00015666]
[1739466456134,0.3608,95759.0,95746.0,0.22296295]
[1739466456345,0.12622435,95756.0,95748.0,0.2088505]
[1739466456543,0.12622435,95756.0,95755.0,0.003]
[1739466456738,0.2088303,95758.0,95755.0,0.0010762]
[1739466457139,0.2088303,95758.0,95751.0,0.012]
[1739466457341,0.3608,95759.0,95751.0,0.012]
[1739466457542,0.3100324,95757.0,95751.0,0.012]
[1739466457738,0.3100324,95757.0,95748.0,0.2088505]
[1739466458338,0.208835,95756.0,95748.0,0.2088505]
[1739466459847,0.208835,95756.0,95747.0,0.00015666]
[1739466459848,0.1012,95757.0,95747.0,0.00015666]
[1739466460046,0.1012,95757.0,95755.0,0.2088349]
[1739466460947,0.33694563,95759.0,95755.0,0.2088349]
[1739466461749,0.2088215,95762.0,95755.0,0.2088349]
[1739466461937,0.12622435,95765.0,95755.0,0.2088349]
[1739466462140,0.2088287,95759.0,95751.0,0.2088451]
[1739466462436,0.2088333,95757.0,95755.0,0.001]
[1739466462635,0.2088343,95756.0,95755.0,0.001]
[1739466462851,0.2088343,95756.0,95755.0,0.003]
[1739466463444,0.2088343,95756.0,95755.0,0.001]
[1739466463646,0.3608,95758.0,95755.0,0.005]
[1739466463944,0.43524,95758.0,95755.0,0.005]
[1739466464147,0.43524,95758.0,95755.0,0.003]
[1739466464148,0.2088343,95756.0,95755.0,0.003]
[1739466464452,0.2118343,95756.0,95748.0,0.2088506]
[1739466464647,0.2118343,95756.0,95747.0,0.00015666]
[1739466464847,0.003,95756.0,95754.0,0.2088373]
[1739466465748,0.002,95756.0,95755.0,0.2088365]
[1739466466452,0.001,95756.0,95747.0,0.00015666]
[1739466466841,0.2098351,95756.0,95750.0,0.2088474]
[1739466467041,0.2088351,95756.0,95755.0,0.001]
[1739466467445,0.2088351,95756.0,95755.0,0.003]
[1739466469040,0.0532087,95756.0,95728.0,0.0502]
[1739466469238,0.33509505,95740.0,95728.0,0.0502]
[1739466469446,0.0517,95739.0,95731.0,0.2088869]
[1739466469853,0.0517,95739.0,95731.0,0.01399549]
[1739466470148,0.208874,95738.0,95728.0,0.0502]
[1739466470351,0.208874,95738.0,95731.0,0.2088876]
[1739466470545,0.208874,95738.0,95728.0,0.0562]
[1739466470746,0.208874,95738.0,95732.0,0.2088864]
[1739466471348,0.2088928,95729.0,95728.0,0.006]
[1739466472043,0.2088928,95729.0,95725.0,0.00015666]
[1739466472240,0.2592867,95732.0,95731.0,0.007]
[1739466472640,0.3098867,95732.0,95731.0,0.007]
[1739466473850,0.101,95732.0,95728.0,0.007]
[1739466474048,0.2088933,95729.0,95728.0,0.007]
[1739466474246,0.5696933,95729.0,95728.0,0.007]
[1739466475551,0.2088998,95726.0,95725.0,0.00015666]
[1739466477147,0.2088998,95726.0,95725.0,0.00315666]
[1739466478155,0.2088998,95726.0,95725.0,0.00415666]
[1739466481144,0.5696944,95729.0,95725.0,0.21305836]
[1739466481359,0.5696944,95729.0,95726.0,0.2088995]
[1739466481556,0.2088956,95728.0,95726.0,0.2088995]
[1739466481757,0.2088998,95726.0,95725.0,0.00415666]
[1739466482956,0.3608,95729.0,95725.0,0.00115666]
[1739466483155,0.2088976,95727.0,95726.0,0.049]
[1739466485757,0.2088976,95727.0,95726.0,0.051]
[1739466486152,0.2088976,95727.0,95726.0,0.002]
[1739466487547,0.2088976,95727.0,95726.0,0.00146766]
[1739466492156,0.2088976,95727.0,95711.0,0.3608]
[1739466492157,0.2089437,95706.0,95683.0,0.3608]
[1739466492357,0.2089437,95706.0,95695.0,0.208967]
[1739466492561,0.2089437,95706.0,95693.0,0.0485]
[1739466492865,0.5697372,95709.0,95701.0,0.2565525]
[1739466493065,0.3608,95709.0,95701.0,0.2565525]
[1739466493266,0.3608,95709.0,95693.0,0.0485]
[1739466493267,0.2089437,95706.0,95693.0,0.0485]
[1739466493452,0.2089437,95706.0,95697.0,0.00015666]
[1739466494354,0.2089437,95706.0,95705.0,0.00856736]
[1739466494552,0.3608,95709.0,95705.0,0.01556736]
[1739466495163,0.2089437,95706.0,95705.0,0.01556736]
[1739466496157,0.2089437,95706.0,95705.0,0.00856736]
[1739466496357,0.3608,95709.0,95705.0,0.01556736]
[1739466497762,0.2089395,95708.0,95705.0,0.00856736]
[1739466498169,0.2089395,95708.0,95705.0,0.00156736]
[1739466498562,0.2089417,95707.0,95705.0,0.00156736]
[1739466499663,0.005,95708.0,95705.0,0.00156736]
[1739466500774,0.005,95707.0,95705.0,0.00156736]
[1739466501271,0.002,95707.0,95705.0,0.00156736]
[1739466501470,0.005,95708.0,95705.0,0.00156736]
[1739466501972,0.003,95707.0,95705.0,0.00156736]
[1739466502359,0.005,95707.0,95705.0,0.00156736]
[1739466503963,0.003,95707.0,95705.0,0.00156736]
[1739466504763,0.005,95707.0,95705.0,0.00156736]
[1739466505073,0.002,95707.0,95705.0,0.00156736]
[1739466505458,0.2109419,95707.0,95705.0,0.00156736]
[1739466505667,0.2139419,95707.0,95705.0,0.00156736]
[1739466508376,0.005,95707.0,95706.0,0.2089437]
[1739466508675,0.005,95707.0,95706.0,0.20522682]
[1739466509082,0.005,95707.0,95706.0,0.56602682]
[1739466509372,0.3608,95736.0,95716.0,0.2089219]
[1739466509373,0.06068543,95729.0,95716.0,0.2089219]
[1739466509763,0.208894,95729.0,95716.0,0.15407975]
[1739466510569,0.12622435,95730.0,95716.0,0.15407975]
[1739466512072,0.00115666,95717.0,95716.0,0.15407975]
[1739466513176,0.00015666,95717.0,95716.0,0.16007975]
[1739466514769,0.00015666,95717.0,95716.0,0.15807975]
[1739466515876,0.00015666,95717.0,95716.0,0.15707975]
[1739466516066,0.00015666,95717.0,95716.0,0.15807975]
[1739466517267,0.47384414,95736.0,95722.0,0.2089088]
[1739466517667,0.11304414,95736.0,95735.0,0.2088804]
[1739466517870,0.11244413,95736.0,95735.0,0.2088804]
[1739466518464,0.11244413,95741.0,95733.0,0.0529]
[1739466518664,0.11244413,95741.0,95740.0,0.2088695]
[1739466520569,0.11544413,95741.0,95740.0,0.2088695]
[1739466520768,0.11844413,95741.0,95740.0,0.5696695]
[1739466521772,0.006,95741.0,95740.0,0.5696695]
[1739466528678,0.00521902,95741.0,95740.0,0.5696695]
[1739466531979,0.00521902,95741.0,95740.0,0.3608]
[1739466532285,0.00521902,95741.0,95726.0,0.00015666]
[1739466532472,0.2088979,95727.0,95726.0,0.00015666]
[1739466533088,0.00056001,95789.0,95769.0,0.2088063]
[1739466533286,0.03170127,95770.0,95769.0,0.9304063]
[1739466533585,0.00056001,95789.0,95769.0,0.7216]
[1739466533773,0.00156701,95773.0,95769.0,0.7216]
[1739466533979,0.00156701,95771.0,95770.0,0.2088041]
[1739466534177,0.00156701,95770.0,95769.0,0.7216]
[1739466534381,0.00156701,95770.0,95769.0,0.9304063]
[1739466534581,0.0508,95797.0,95778.0,0.2087866]
[1739466534582,0.00015666,95779.0,95778.0,0.2087866]
[1739466534782,0.00015666,95779.0,95778.0,0.5695866]
[1739466534993,0.00172367,95779.0,95778.0,0.5695866]
[1739466535587,0.00015666,95779.0,95778.0,0.5695866]
[1739466536286,0.00015666,95779.0,95778.0,0.5725866]
[1739466537580,0.00015666,95779.0,95778.0,0.5735866]
[1739466538076,0.00015666,95779.0,95778.0,0.5705866]
[1739466538284,0.00015666,95779.0,95778.0,0.5735866]
[1739466538481,0.00172367,95779.0,95778.0,0.5725866]
[1739466538686,0.00172367,95779.0,95778.0,0.5745866]
[1739466539076,0.00172367,95779.0,95778.0,0.5755866]
[1739466540082,0.00172367,95779.0,95778.0,0.5735866]
[1739466540278,0.00172367,95779.0,95778.0,0.5755866]
[1739466541292,0.00172367,95779.0,95778.0,0.3658]
[1739466541587,0.00172367,95779.0,95778.0,0.3648]
[1739466541788,0.00172367,95779.0,95778.0,0.3638]
[1739466541996,0.00172367,95779.0,95778.0,0.3648]
[1739466542490,0.21050817,95779.0,95778.0,0.3648]
[1739466542685,0.21050817,95779.0,95778.0,0.004]
[1739466542891,0.21050817,95779.0,95778.0,0.001]
[1739466543589,0.00172367,95779.0,95771.0,0.3608]
[1739466543793,0.00156701,95772.0,95771.0,0.5696019]
[1739466545385,0.00156701,95772.0,95771.0,0.5736019]
[1739466545989,0.00156701,95772.0,95771.0,0.3648]
[1739466546191,0.00156701,95772.0,95771.0,0.3608]
[1739466546588,0.00256701,95772.0,95771.0,0.3608]
[1739466546893,0.21136681,95772.0,95771.0,0.3608]
[1739466547091,0.21036681,95772.0,95771.0,0.3608]
[1739466547699,0.00156701,95772.0,95771.0,0.3608]
[1739466548903,0.21036681,95772.0,95771.0,0.3608]
[1739466549095,0.00156701,95772.0,95771.0,0.3608]
[1739466551692,0.00156701,95772.0,95771.0,0.569602]
[1739466554303,0.00156701,95772.0,95771.0,0.571602]
[1739466555106,0.00156701,95772.0,95771.0,0.575602]
[1739466555804,0.00015666,95779.0,95771.0,0.3668]
[1739466555994,0.00015666,95779.0,95775.0,0.3608]
[1739466556195,0.00015666,95779.0,95778.0,0.2087867]
[1739466557306,0.00015666,95779.0,95778.0,0.2097867]
[1739466557708,0.00015666,95779.0,95778.0,0.2127867]
[1739466561321,0.00172367,95779.0,95778.0,0.2127867]
[1739466562924,0.00172367,95779.0,95778.0,0.15241508]
[1739466565922,0.00172367,95779.0,95778.0,0.15141508]
[1739466566123,0.00172367,95779.0,95778.0,0.004]
[1739466566515,0.00172367,95779.0,95778.0,0.003]
[1739466566717,0.00272367,95779.0,95778.0,0.003]
[1739466567016,0.10292367,95779.0,95778.0,0.003]
[1739466567218,0.10192367,95779.0,95778.0,0.001]
[1739466567422,0.10192367,95779.0,95778.0,0.01589425]
[1739466567621,0.10192367,95779.0,95778.0,0.001]
[1739466567926,0.10292367,95779.0,95778.0,0.001]
[1739466569124,0.10192367,95779.0,95778.0,0.001]
[1739466569718,0.2087911,95776.0,95775.0,0.36152]
[1739466569926,0.00156701,95776.0,95775.0,0.37444165]
[1739466570722,0.00156701,95776.0,95775.0,0.58323485]
[1739466572322,0.00162096,95776.0,95775.0,0.58323485]
[1739466576135,0.00162096,95776.0,95775.0,0.51138256]
[1739466577036,0.00162096,95776.0,95775.0,0.30258936]
[1739466578423,0.21041186,95776.0,95775.0,0.30258936]
[1739466579430,0.00162096,95776.0,95762.0,0.0525]
[1739466579637,0.2088061,95769.0,95768.0,0.3608]
[1739466579829,0.0521,95775.0,95768.0,0.37462229]
[1739466580031,0.00156701,95769.0,95768.0,0.37462229]
[1739466581328,0.21037331,95769.0,95768.0,0.3608]
[1739466582129,0.21037331,95769.0,95768.0,0.3628]
[1739466582929,0.21037331,95769.0,95768.0,0.3618]
[1739466583438,0.2088238,95761.0,95760.0,0.00015666]
[1739466583637,0.21039081,95761.0,95760.0,0.00015666]
[1739466585037,0.00156701,95761.0,95760.0,0.00015666]
[1739466585243,0.21039081,95761.0,95760.0,0.00015666]
[1739466585735,0.21039081,95761.0,95760.0,0.00115666]
[1739466586840,0.21039081,95761.0,95760.0,0.00415666]
[1739466588638,0.00156701,95761.0,95760.0,0.00415666]
[1739466589644,0.00156701,95761.0,95760.0,0.36495666]
[1739466589837,0.00156701,95761.0,95760.0,0.57378256]
[1739466590032,0.052,95768.0,95767.0,0.2088107]
[1739466590238,0.2088149,95766.0,95761.0,0.0505]
[1739466590445,0.052,95768.0,95760.0,0.36567666]
[1739466590653,0.00156701,95761.0,95760.0,0.57378266]
[1739466591242,0.00156701,95761.0,95760.0,0.57078266]
[1739466591946,0.00156701,95761.0,95760.0,0.57278266]
[1739466593444,0.00156701,95761.0,95760.0,0.57378266]
[1739466598540,0.00156701,95761.0,95760.0,0.36495666]
[1739466598541,0.21039081,95761.0,95760.0,0.36495666]
[1739466600657,0.00156701,95761.0,95760.0,0.36495666]
[1739466601440,0.21039081,95761.0,95760.0,0.36495666]
[1739466601647,0.21039081,95761.0,95760.0,0.00415666]
[1739466601648,0.00156701,95761.0,95760.0,0.00415666]
[1739466601848,0.00015666,95779.0,95775.0,0.2087932]
[1739466602047,0.0512,95809.0,95788.0,0.2087649]
[1739466602247,0.01291532,95807.0,95788.0,0.3608]
[1739466602546,0.01291532,95807.0,95798.0,0.5695415]
[1739466602843,0.01291532,95807.0,95798.0,0.58246869]
[1739466603047,0.01291532,95807.0,95799.0,0.1063]
[1739466603448,0.10156701,95800.0,95799.0,0.1063]
[1739466603848,0.10156701,95800.0,95798.0,0.0018]
[1739466604050,0.00156701,95799.0,95798.0,0.001]
[1739466604953,0.00156701,95799.0,95798.0,0.002]
[1739466605156,0.00156701,95799.0,95798.0,0.01396288]
[1739466605351,0.00156701,95799.0,95798.0,0.001]
[1739466605854,0.12622435,95810.0,95798.0,0.002]
[1739466605855,0.06668583,95810.0,95798.0,0.002]
[1739466606056,0.06668583,95810.0,95806.0,0.3608]
[1739466606251,0.0130143,95811.0,95806.0,0.3608]
[1739466606451,0.00521902,95807.0,95806.0,0.3608]
[1739466606651,0.00521902,95807.0,95804.0,0.2087295]
[1739466606853,0.01304199,95816.0,95804.0,0.2087295]
[1739466607050,0.00521902,95805.0,95804.0,0.2087295]
[1739466607750,0.00521902,95805.0,95798.0,0.01520154]
[1739466607751,0.21394722,95805.0,95798.0,0.002]
[1739466607956,0.3608,95803.0,95798.0,0.002]
[1739466608167,0.2087391,95800.0,95798.0,0.001]
[1739466608354,0.051,95799.0,95798.0,0.001]
[1739466608655,0.13837473,95799.0,95789.0,0.00015658]
[1739466608966,0.0524,95798.0,95790.0,0.2087602]
[1739466609147,0.07428,95797.0,95790.0,0.2087602]
[1739466610157,0.07428,95797.0,95789.0,0.00015658]
[1739466610359,0.0524,95798.0,95789.0,0.00015658]
[1739466610360,0.3608,95794.0,95789.0,0.00015658]
[1739466610559,0.3608,95794.0,95766.0,0.5696111]
[1739466610760,0.2087759,95783.0,95771.0,0.2088011]
[1739466610953,0.2087759,95783.0,95770.0,0.12622435]
[1739466611160,0.12622435,95790.0,95775.0,0.2087929]
[1739466611356,0.2087673,95787.0,95776.0,0.2087909]
[1739466611564,0.5695538,95794.0,95785.0,0.2087706]
[1739466611758,0.00015658,95791.0,95785.0,0.2087706]
[1739466611964,0.00015658,95791.0,95774.0,0.3608]
[1739466612159,0.00015658,95791.0,95790.0,0.001]
[1739466613066,0.00015658,95791.0,95790.0,0.01392421]
[1739466613267,0.00015658,95791.0,95790.0,0.58348471]
[1739466613567,0.00015658,95791.0,95790.0,0.58248471]
[1739466614459,0.00015658,95791.0,95790.0,0.58348471]
[1739466615164,0.00015658,95791.0,95790.0,0.58448471]
[1739466618158,0.00015658,95791.0,95790.0,0.37572421]
[1739466619263,0.00015658,95791.0,95790.0,0.3628]
[1739466619464,0.00015658,95791.0,95790.0,0.002]
[1739466619662,0.00015658,95791.0,95790.0,0.3628]
[1739466621978,0.00015658,95791.0,95790.0,0.3618]
[1739466622271,0.00015658,95791.0,95790.0,0.3638]
[1739466623167,0.00015658,95791.0,95790.0,0.3628]
[1739466623565,0.00015658,95791.0,95790.0,0.3608]
[1739466623759,0.00015658,95791.0,95790.0,0.3618]
[1739466624371,0.00015658,95791.0,95790.0,0.3608]
[1739466624674,0.00015658,95791.0,95790.0,0.3668]
[1739466625270,0.00015658,95791.0,95790.0,0.3628]
[1739466625477,0.00015658,95791.0,95790.0,0.5715606]
[1739466627264,0.00015658,95791.0,95790.0,0.5745606]
[1739466627463,0.00015658,95791.0,95790.0,0.5775606]
[1739466628071,0.00015658,95791.0,95790.0,0.002]
[1739466628375,0.30015658,95791.0,95773.0,0.00072]
[1739466628577,0.2087909,95777.0,95754.0,0.3608]
[1739466628768,0.2087976,95773.0,95765.0,0.01293675]
[1739466629567,0.051,95776.0,95768.0,0.2088077]
[1739466629965,0.051,95776.0,95775.0,0.3608]
[1739466630171,0.2087674,95787.0,95779.0,0.2087845]
[1739466630361,0.01286685,95787.0,95775.0,0.3608]
[1739466630566,0.208778,95782.0,95775.0,0.3608]
[1739466631063,0.12622435,95790.0,95775.0,0.3608]
[1739466631268,0.12622435,95790.0,95775.0,0.3678]
[1739466631673,0.3608,95787.0,95775.0,0.3678]
[1739466631968,0.2087892,95777.0,95775.0,0.3608]
[1739466632170,0.3608,95787.0,95775.0,0.3608]
[1739466632171,0.2087772,95783.0,95775.0,0.3608]
[1739466632375,0.2087772,95783.0,95776.0,0.2087907]
[1739466633677,0.01311609,95787.0,95775.0,0.36752]
[1739466633867,0.2087681,95787.0,95779.0,0.2087835]
[1739466634072,0.00015658,95791.0,95783.0,0.3608]
[1739466634376,0.00015658,95791.0,95784.0,0.0502]
[1739466634576,0.00015658,95791.0,95789.0,0.2087612]
[1739466634970,0.00015658,95791.0,95784.0,0.0502]
[1739466635373,0.00015658,95791.0,95790.0,0.2087602]
[1739466637173,0.00015658,95791.0,95790.0,0.2097602]
[1739466640275,0.00015658,95791.0,95790.0,0.001]
[1739466643577,0.00015658,95791.0,95790.0,0.2097604]
[1739466643776,0.00015658,95791.0,95790.0,0.2087604]
[1739466643983,0.00015658,95791.0,95790.0,0.2097604]
[1739466646483,0.00015658,95791.0,95790.0,0.2127604]
[1739466647375,0.2087128,95812.0,95806.0,0.2087251]
[1739466647576,0.01318358,95812.0,95804.0,0.3608]
[1739466647779,0.00521902,95811.0,95810.0,0.2087169]
[1739466648480,0.06070549,95819.0,95818.0,0.2086995]
[1739466648787,0.0509,95829.0,95819.0,0.2086966]
[1739466648988,0.0509,95829.0,95818.0,0.3608]
[1739466648989,0.00521902,95819.0,95818.0,0.5694995]
[1739466649288,0.00521902,95819.0,95818.0,0.9302995]
[1739466649487,0.06405325,95829.0,95824.0,0.2086842]
[1739466649680,0.01315325,95829.0,95828.0,0.5694777]
[1739466649882,0.00156583,95836.0,95828.0,0.5694777]
[1739466650084,0.00521902,95829.0,95828.0,0.3608]
[1739466650887,0.00521902,95829.0,95828.0,0.3618]
[1739466651585,0.00521902,95829.0,95828.0,0.3628]
[1739466651785,0.21389452,95829.0,95828.0,0.002]
[1739466652782,0.00521902,95829.0,95828.0,0.002]
[1739466653990,0.00521902,95828.0,95827.0,0.55382194]
[1739466654177,0.00521902,95828.0,95827.0,0.55306194]
[1739466654585,0.00156583,95836.0,95827.0,0.34438204]
[1739466654789,0.00521902,95829.0,95828.0,0.2086777]